fUST/lending_fUST_20251029
["ID","MTS","AMOUNT","RATE_DAILY","PERIOD"]
[392582004,1761685855391,-155.23627567,0.00025479,2]
[392582005,1761685855401,-500.0,0.00025479,2]
[392582006,1761685855410,-500.0,0.00025479,2]
[392582007,1761685855419,-593.39910782,0.00025479,2]
[392582008,1761685855428,-500.0,0.00025479,2]
[392582009,1761685855438,-1209.06,0.00025479,2]
[392582010,1761685855447,-500.0,0.00025479,2]
[392582011,1761685855456,-500.0,0.00025479,2]
[392582012,1761685855465,-500.0,0.00025479,2]
[392582013,1761685855475,-405.9238328,0.00025479,2]
[392582014,1761685855484,-500.0,0.00025479,2]
[392582015,1761685855493,-500.0,0.00025479,2]
[392582016,1761685855502,-500.0,0.00025479,2]
[392582017,1761685855512,-572.38,0.00025479,2]
[392582018,1761685855523,-1858.13,0.00025479,2]
[392582019,1761685855533,-500.0,0.00025479,2]
[392582020,1761685855541,-500.0,0.00025479,2]
[392582021,1761685855551,-838.86,0.00025479,2]
[392582022,1761685855560,-500.0,0.00025479,2]
[392582023,1761685855569,-500.0,0.00025479,2]
[392582024,1761685855578,-500.0,0.00025479,2]
[392582025,1761685855588,-525.49,0.00025479,2]
[392582026,1761685855597,-500.0,0.00025479,2]
[392582027,1761685855606,-747.47,0.00025479,2]
[392582028,1761685855615,-500.0,0.00025479,2]
[392582029,1761685855624,-500.0,0.00025479,2]
[392582030,1761685855634,-500.0,0.00025479,2]
[392582031,1761685855643,-500.0,0.00025479,2]
[392582032,1761685855652,-500.0,0.00025479,2]
[392582033,1761685855662,-500.0,0.00025479,2]
[392582034,1761685855671,-500.0,0.00025479,2]
[392582035,1761685855680,-500.0,0.00025479,2]
[392582036,1761685855689,-555.29,0.00025479,2]
[392582037,1761685855698,-692.42,0.00025479,2]
[392582038,1761685855707,-843.66,0.00025479,2]
[392582039,1761685855717,-500.0,0.00025479,2]
[392582040,1761685855727,-500.0,0.00025479,2]
[392582041,1761685855736,-1015.85,0.00025479,2]
[392582042,1761685855746,-500.0,0.00025479,2]
[392582043,1761685855755,-500.0,0.00025479,2]
[392582044,1761685855765,-629.76644112,0.00025479,2]
[392582045,1761685855774,-500.0,0.00025479,2]
[392582046,1761685855783,-644.8,0.00025479,2]
[392582047,1761685855792,-500.0,0.00025479,2]
[392582048,1761685855801,-500.0,0.00025479,2]
[392582049,1761685855811,-500.0,0.00025479,2]
[392582050,1761685855820,-502.3,0.00025479,2]
[392582051,1761685855829,-699.92,0.00025479,2]
[392582052,1761685855839,-662.12,0.00025479,2]
[392582053,1761685855848,-500.0,0.00025479,2]
[392582054,1761685855858,-500.0,0.00025479,2]
[392582055,1761685855868,-754.62,0.00025479,2]
[392582056,1761685855877,-171.92612429,0.00025479,2]
[392582057,1761685855886,-500.0,0.00025479,2]
[392582058,1761685855895,-500.0,0.00025479,2]
[392582059,1761685855905,-500.0,0.00025479,2]
[392582060,1761685855915,-757.0,0.0002548,2]
[392582061,1761685855924,-500.0,0.000255,7]
[392582062,1761685855933,-1000.0,0.000255,2]
[392582063,1761685855942,-392.39293304,0.00025508,63]
[392582064,1761685855951,-250.0,0.00025521,2]
[392582065,1761685855960,-757.0,0.00025535,2]
[392582066,1761685855969,-500.0,0.00025548,2]
[392582067,1761685855978,-591.1907204,0.00025556,2]
[392582068,1761685855987,-317.4447065,0.00025576,71]
[392582069,1761685855996,-757.0,0.0002559,2]
[392582070,1761685856006,-170.0,0.00025616,17]
[392582071,1761685856015,-2647.8,0.00025617,2]
[392582072,1761685856024,-500.0,0.00025625,7]
[392582073,1761685856034,-757.0,0.00025644,2]
[392582074,1761685856043,-500.0,0.0002565,7]
[392582075,1761685856052,-392.39293304,0.00025655,71]
[392582076,1761685856061,-500.0,0.00025672,7]
[392582077,1761685856070,-500.0,0.00025692,7]
[392582078,1761685856080,-757.0,0.00025699,2]
[392582079,1761685856089,-317.4447065,0.00025722,79]
[392582080,1761685856099,-500.0,0.00025742,7]
[392582081,1761685856109,-500.0,0.00025753,2]
[392582082,1761685856121,-959.62,0.00025753,2]
[392582083,1761685856131,-200.0,0.00025753,2]
[392582084,1761685856140,-536.3319882,0.00025753,2]
[392582085,1761685856149,-500.0,0.00025753,2]
[392582086,1761685856159,-500.0,0.00025753,2]
[392582087,1761685856169,-503.26,0.00025753,2]
[392582088,1761685856178,-500.0,0.00025753,2]
[392582089,1761685856188,-500.0,0.00025753,2]
[392582090,1761685856197,-500.0,0.00025753,2]
[392582091,1761685856206,-500.0,0.00025753,2]
[392582092,1761685856215,-500.0,0.00025753,2]
[392582093,1761685856224,-496.07877602,0.00025753,2]
[392582094,1761685856233,-1209.06,0.00025753,2]
[392582095,1761685856242,-500.0,0.00025753,2]
[392582096,1761685856251,-500.0,0.00025753,2]
[392582097,1761685856260,-500.0,0.00025753,2]
[392582098,1761685856269,-500.0,0.00025753,2]
[392582099,1761685856278,-500.0,0.00025753,2]
[392582100,1761685856288,-476.37383358,0.00025753,2]
[392582101,1761685856298,-572.38,0.00025753,2]
[392582102,1761685856308,-1858.13,0.00025753,2]
[392582103,1761685856318,-500.0,0.00025753,2]
[392582104,1761685856327,-500.0,0.00025753,2]
[392582105,1761685856337,-838.86,0.00025753,2]
[392582106,1761685856346,-500.0,0.00025753,2]
[392582107,1761685856357,-500.0,0.00025753,2]
[392582108,1761685856366,-500.0,0.00025753,2]
[392582109,1761685856376,-525.49,0.00025753,2]
[392582110,1761685856385,-500.0,0.00025753,2]
[392582111,1761685856394,-747.47,0.00025753,2]
[392582112,1761685856403,-500.0,0.00025753,2]
[392582113,1761685856412,-182.2511694,0.00025753,2]
[392582114,1761685856421,-500.0,0.00025753,2]
[392582115,1761685856430,-500.0,0.00025753,2]
[392582116,1761685856439,-500.0,0.00025753,2]
[392582117,1761685856448,-500.0,0.00025753,2]
[392582118,1761685856457,-500.0,0.00025753,2]
[392582119,1761685856467,-500.0,0.00025753,2]
[392582120,1761685856476,-555.29,0.00025753,2]
[392582121,1761685856486,-692.42,0.00025753,2]
[392582122,1761685856495,-843.66,0.00025753,2]
[392582123,1761685856505,-500.0,0.00025753,2]
[392582124,1761685856516,-500.0,0.00025753,2]
[392582125,1761685856526,-1015.85,0.00025753,2]
[392582126,1761685856535,-500.0,0.00025753,2]
[392582127,1761685856544,-500.0,0.00025753,2]
[392582128,1761685856554,-500.0,0.00025753,2]
[392582129,1761685856563,-644.8,0.00025753,2]
[392582130,1761685856572,-500.0,0.00025753,2]
[392582131,1761685856582,-172.0364639,0.00025753,2]
[392582132,1761685856592,-500.0,0.00025753,2]
[392582133,1761685856601,-502.3,0.00025753,2]
[392582134,1761685856611,-699.92,0.00025753,2]
[392582135,1761685856622,-662.12,0.00025753,2]
[392582136,1761685856631,-500.0,0.00025753,2]
[392582137,1761685856641,-500.0,0.00025753,2]
[392582138,1761685856650,-754.62,0.00025753,2]
[392582139,1761685856660,-500.0,0.00025753,2]
[392582140,1761685856669,-500.0,0.00025753,2]
[392582141,1761685856679,-500.0,0.00025753,2]
[392582142,1761685856688,-757.0,0.00025754,2]
[392582143,1761685856698,-3500.0,0.0002576,2]
[392582144,1761685856708,-500.0,0.00025768,7]
[392582145,1761685856717,-392.39293304,0.00025801,79]
[392582146,1761685856727,-757.0,0.00025809,2]
[392582147,1761685856737,-241.682803,0.00025812,2]
[392582148,1761685856746,-3000.0,0.00025812,2]
[392582149,1761685856756,-757.0,0.00025863,2]
[392582150,1761685856767,-317.4447065,0.00025868,86]
[392582151,1761685856776,-25000.13837003,0.0002587,7]
[392582152,1761685856786,-25000.0,0.0002587,2]
[392582153,1761685856796,-516.20226783,0.00025888,7]
[392582154,1761685856805,-760.0,0.00025912,2]
[392582155,1761685856816,-770.1208069,0.00025918,2]
[392582156,1761685856825,-392.39293304,0.00025947,86]
[392582157,1761685856834,-525.71588748,0.00026,2]
[392582158,1761685856843,-154.96424443,0.00026,2]
[392582159,1761685856853,-19900.0,0.00026,2]
[392582160,1761685856863,-317.4447065,0.00026014,94]
[392582161,1761685856873,-160.87118588,0.00026027,2]
[392582162,1761685856882,-959.62,0.00026027,2]
[392582163,1761685856892,-200.0,0.00026027,2]
[392582164,1761685856903,-500.0,0.00026027,2]
[392582165,1761685856912,-500.0,0.00026027,2]
[392582166,1761685856922,-503.26,0.00026027,2]
[392582167,1761685856931,-500.0,0.00026027,2]
[392582168,1761685856941,-500.0,0.00026027,2]
[392582169,1761685856950,-500.0,0.00026027,2]
[392582170,1761685856960,-515.82688732,0.00026027,2]
[392582171,1761685856969,-500.0,0.00026027,2]
[392582172,1761685856978,-1209.06,0.00026027,2]
[392582173,1761685856988,-500.0,0.00026027,2]
[392582174,1761685856999,-500.0,0.00026027,2]
[392582175,1761685857010,-500.0,0.00026027,2]
[392582176,1761685857020,-629.92666242,0.00026027,2]
[392582177,1761685857029,-500.0,0.00026027,2]
[392582178,1761685857039,-572.38,0.00026027,2]
[392582179,1761685857049,-1858.13,0.00026027,2]
[392582180,1761685857059,-500.0,0.00026027,2]
[392582181,1761685857069,-500.0,0.00026027,2]
[392582182,1761685857079,-838.86,0.00026027,2]
[392582183,1761685857088,-500.0,0.00026027,2]
[392582184,1761685857098,-500.0,0.00026027,2]
[392582185,1761685857112,-500.0,0.00026027,2]
[392582186,1761685857122,-525.49,0.00026027,2]
[392582187,1761685857131,-181.87624631,0.00026027,2]
[392582188,1761685857140,-747.47,0.00026027,2]
[392582189,1761685857150,-500.0,0.00026027,2]
[392582190,1761685857159,-500.0,0.00026027,2]
[392582191,1761685857168,-500.0,0.00026027,2]
[392582192,1761685857178,-214.4313031,0.00026027,2]
[392582193,1761685857187,-500.0,0.00026027,2]
[392582194,1761685857196,-500.0,0.00026027,2]
[392582195,1761685857206,-500.0,0.00026027,2]
[392582196,1761685857215,-555.29,0.00026027,2]
[392582197,1761685857226,-692.42,0.00026027,2]
[392582198,1761685857236,-843.66,0.00026027,2]
[392582199,1761685857246,-500.0,0.00026027,2]
[392582200,1761685857255,-532.12480897,0.00026027,2]
[392582201,1761685857266,-1015.85,0.00026027,2]
[392582202,1761685857276,-500.0,0.00026027,2]
[392582203,1761685857285,-517.5650672,0.00026027,2]
[392582204,1761685857295,-500.0,0.00026027,2]
[392582205,1761685857304,-644.8,0.00026027,2]
[392582206,1761685857314,-500.0,0.00026027,2]
[392582207,1761685857323,-279.29931869,0.00026027,2]
[392582208,1761685857333,-502.3,0.00026027,2]
[392582209,1761685857343,-699.92,0.00026027,2]
[392582210,1761685857352,-662.12,0.00026027,2]
[392582211,1761685857362,-500.0,0.00026027,2]
[392582212,1761685857371,-500.0,0.00026027,2]
[392582213,1761685857381,-754.62,0.00026027,2]
[392582214,1761685857391,-500.0,0.00026027,2]
[392582215,1761685857400,-500.0,0.00026027,2]
[392582216,1761685857410,-500.0,0.00026027,2]
[392582217,1761685857419,-350.0,0.00026068,2]
[392582218,1761685857429,-392.39293304,0.00026094,94]
[392582219,1761685857439,-193.0755166,0.0002616,2]
[392582220,1761685857448,-317.4447065,0.0002616,102]
[392582221,1761685857458,-392.39293304,0.0002624,102]
[392582222,1761685857468,-500.0,0.0002625,7]
[392582223,1761685857478,-5000.0,0.00026275,2]
[392582224,1761685857488,-959.62,0.00026301,2]
[392582225,1761685857498,-151.0,0.00026301,7]
[392582226,1761685857507,-200.0,0.00026301,2]
[392582227,1761685857519,-500.0,0.00026301,2]
[392582228,1761685857530,-500.0,0.00026301,2]
[392582229,1761685857539,-503.26,0.00026301,2]
[392582230,1761685857549,-500.0,0.00026301,2]
[392582231,1761685857558,-549.54812676,0.00026301,2]
[392582232,1761685857568,-500.0,0.00026301,2]
[392582233,1761685857577,-500.0,0.00026301,2]
[392582234,1761685857586,-1209.06,0.00026301,2]
[392582235,1761685857596,-500.0,0.00026301,2]
[392582236,1761685857606,-500.0,0.00026301,2]
[392582237,1761685857615,-354.02362611,0.00026301,2]
[392582238,1761685857624,-500.0,0.00026301,2]
[392582239,1761685857634,-572.38,0.00026301,2]
[392582240,1761685857644,-1858.13,0.00026301,2]
[392582241,1761685857654,-352.12667121,0.00026301,2]
[392582242,1761685857663,-500.0,0.00026301,2]
[392582243,1761685857673,-838.86,0.00026301,2]
[392582244,1761685857683,-500.0,0.00026301,2]
[392582245,1761685857693,-500.0,0.00026301,2]
[392582246,1761685857703,-500.0,0.00026301,2]
[392582247,1761685857712,-525.49,0.00026301,2]
[392582248,1761685857723,-747.47,0.00026301,2]
[392582249,1761685857732,-500.0,0.00026301,2]
[392582250,1761685857742,-500.0,0.00026301,2]
[392582251,1761685857751,-500.0,0.00026301,2]
[392582252,1761685857762,-500.0,0.00026301,2]
[392582253,1761685857771,-226.53242359,0.00026301,2]
[392582254,1761685857780,-500.0,0.00026301,2]
[392582255,1761685857790,-555.29,0.00026301,2]
[392582256,1761685857800,-692.42,0.00026301,2]
[392582257,1761685857810,-843.66,0.00026301,2]
[392582258,1761685857819,-500.0,0.00026301,2]
[392582259,1761685857829,-1015.85,0.00026301,2]
[392582260,1761685857839,-500.0,0.00026301,2]
[392582261,1761685857848,-500.0,0.00026301,2]
[392582262,1761685857858,-644.8,0.00026301,2]
[392582263,1761685857867,-500.0,0.00026301,2]
[392582264,1761685857876,-502.3,0.00026301,2]
[392582265,1761685857887,-699.92,0.00026301,2]
[392582266,1761685857897,-662.12,0.00026301,2]
[392582267,1761685857907,-500.0,0.00026301,2]
[392582268,1761685857917,-500.0,0.00026301,2]
[392582269,1761685857927,-754.62,0.00026301,2]
[392582270,1761685857937,-500.0,0.00026301,2]
[392582271,1761685857946,-500.0,0.00026301,2]
[392582272,1761685857956,-500.0,0.00026301,2]
[392582273,1761685857966,-4000.0,0.00026308,2]
[392582274,1761685857976,-500.0,0.00026313,7]
[392582275,1761685857986,-2880.62248854,0.0002636,2]
[392582276,1761685857995,-392.39293304,0.00026387,110]
[392582277,1761685858005,-171.79187941,0.0002643,2]
[392582278,1761685858015,-860.0,0.0002646,2]
[392582279,1761685858025,-500.0,0.00026521,7]
[392582280,1761685858038,-500.0,0.0002653,7]
[392582281,1761685858048,-500.0,0.00026545,2]
[392582282,1761685858058,-959.62,0.00026575,2]
[392582283,1761685858067,-200.0,0.00026575,2]
[392582284,1761685858076,-192.743219,0.00026575,7]
[392582285,1761685858086,-500.0,0.00026575,2]
[392582286,1761685858095,-212.16267454,0.00026575,2]
[392582287,1761685858105,-151.0,0.00026575,7]
[392582288,1761685858118,-503.26,0.00026575,2]
[392582289,1761685858127,-247.5639376,0.00026575,2]
[392582290,1761685858138,-500.0,0.00026575,2]
[392582291,1761685858149,-500.0,0.00026575,2]
[392582292,1761685858158,-1209.06,0.00026575,2]
[392582293,1761685858168,-500.0,0.00026575,2]
[392582294,1761685858178,-566.90744042,0.00026575,2]
[392582295,1761685858192,-500.0,0.00026575,2]
[392582296,1761685858202,-572.38,0.00026575,2]
[392582297,1761685858212,-1858.13,0.00026575,2]
[392582298,1761685858222,-500.0,0.00026575,2]
[392582299,1761685858231,-838.86,0.00026575,2]
[392582300,1761685858242,-519.41098543,0.00026575,2]
[392582301,1761685858252,-500.0,0.00026575,2]
[392582302,1761685858262,-500.0,0.00026575,2]
[392582303,1761685858273,-525.49,0.00026575,2]
[392582304,1761685858283,-747.47,0.00026575,2]
[392582305,1761685858294,-500.0,0.00026575,2]
[392582306,1761685858304,-500.0,0.00026575,2]
[392582307,1761685858314,-500.0,0.00026575,2]
[392582308,1761685858324,-500.0,0.00026575,2]
[392582309,1761685858334,-500.0,0.00026575,2]
[392582310,1761685858343,-555.29,0.00026575,2]
[392582311,1761685858354,-692.42,0.00026575,2]
[392582312,1761685858364,-843.66,0.00026575,2]
[392582313,1761685858374,-377.47838392,0.00026575,2]
[392582314,1761685858384,-1015.85,0.00026575,2]
[392582315,1761685858394,-400.31963928,0.00026575,2]
[392582316,1761685858405,-500.0,0.00026575,2]
[392582317,1761685858415,-644.8,0.00026575,2]
[392582318,1761685858425,-456.98872468,0.00026575,2]
[392582319,1761685858435,-502.3,0.00026575,2]
[392582320,1761685858446,-699.92,0.00026575,2]
[392582321,1761685858456,-662.12,0.00026575,2]
[392582322,1761685858466,-500.0,0.00026575,2]
[392582323,1761685858477,-500.0,0.00026575,2]
[392582324,1761685858487,-754.62,0.00026575,2]
[392582325,1761685858497,-500.0,0.00026575,2]
[392582326,1761685858507,-500.0,0.00026575,2]
[392582327,1761685858519,-500.0,0.00026575,2]
[392582328,1761685858530,-153.826732,0.00026598,7]
[392582329,1761685858540,-151.0,0.00026598,7]
[392582330,1761685858718,-151.0,0.000266,7]
[392582331,1761685858728,-151.0,0.000266,7]
[392582332,1761685858738,-203.673432,0.000266,7]
[392582333,1761685858748,-151.0,0.000266,7]
[392582334,1761685858758,-151.0,0.000266,7]
[392582335,1761685858770,-151.0,0.000266,7]
[392582336,1761685858780,-151.0,0.000266,7]
[392582337,1761685858790,-151.0,0.000266,7]
[392582338,1761685858800,-151.0,0.000266,7]
[392582339,1761685858810,-1001.438825,0.000266,7]
[392582340,1761685858819,-1001.438825,0.000266,7]
[392582341,1761685858829,-1001.438825,0.000266,7]
[392582342,1761685858838,-1001.438825,0.000266,7]
[392582343,1761685858849,-450.0,0.00026616,2]
[392582344,1761685858859,-500.0,0.00026666,5]
[392582345,1761685858869,-6225.11379955,0.00026672,2]
[392582346,1761685858879,-798.108273,0.00026676,2]
[392582347,1761685858890,-500.0,0.00026692,7]
[392582348,1761685858900,-167.6087454,0.00026712,6]
[392582349,1761685858910,-500.0,0.00026808,7]
[392582350,1761685858919,-959.62,0.00026849,2]
[392582351,1761685858929,-278.05538638,0.00026849,2]
[392582352,1761685858938,-500.0,0.00026849,2]
[392582353,1761685858949,-503.26,0.00026849,2]
[392582354,1761685858959,-521.73824598,0.00026849,2]
[392582355,1761685858968,-500.0,0.00026849,2]
[392582356,1761685858978,-1209.06,0.00026849,2]
[392582357,1761685858988,-500.0,0.00026849,2]
[392582358,1761685858997,-500.0,0.00026849,2]
[392582359,1761685859007,-572.38,0.00026849,2]
[392582360,1761685859020,-1858.13,0.00026849,2]
[392582361,1761685859030,-500.0,0.00026849,2]
[392582362,1761685859040,-838.86,0.00026849,2]
[392582363,1761685859050,-500.0,0.00026849,2]
[392582364,1761685859059,-500.0,0.00026849,2]
[392582365,1761685859069,-525.49,0.00026849,2]
[392582366,1761685859079,-747.47,0.00026849,2]
[392582367,1761685859089,-304.95080671,0.00026849,2]
[392582368,1761685859099,-500.0,0.00026849,2]
[392582369,1761685859111,-500.0,0.00026849,2]
[392582370,1761685859123,-500.0,0.00026849,2]
[392582371,1761685859134,-500.0,0.00026849,2]
[392582372,1761685859144,-555.29,0.00026849,2]
[392582373,1761685859155,-692.42,0.00026849,2]
[392582374,1761685859166,-843.66,0.00026849,2]
[392582375,1761685859175,-1015.85,0.00026849,2]
[392582376,1761685859185,-500.0,0.00026849,2]
[392582377,1761685859195,-644.8,0.00026849,2]
[392582378,1761685859205,-502.3,0.00026849,2]
[392582379,1761685859216,-699.92,0.00026849,2]
[392582380,1761685859226,-662.12,0.00026849,2]
[392582381,1761685859236,-500.0,0.00026849,2]
[392582382,1761685859246,-500.0,0.00026849,2]
[392582383,1761685859256,-754.62,0.00026849,2]
[392582384,1761685859266,-500.0,0.00026849,2]
[392582385,1761685859276,-500.0,0.00026849,2]
[392582386,1761685859286,-500.0,0.00026849,2]
[392582387,1761685859296,-500.0,0.00026852,7]
[392582388,1761685859306,-151.0,0.00026856,7]
[392582389,1761685859315,-255.257796,0.00026856,7]
[392582390,1761685859326,-4500.0,0.00026856,2]
[392582391,1761685859335,-151.0,0.00026883,7]
[392582392,1761685859344,-151.0,0.00026883,7]
[392582393,1761685859354,-151.0,0.00026883,7]
[392582394,1761685859363,-1136.29357901,0.000269,2]
[392582395,1761685859374,-500.0,0.00026912,7]
[392582396,1761685859385,-500.0,0.00026943,7]
[392582397,1761685859395,-493.0,0.0002695,2]
[392582398,1761685859405,-966.45,0.00026957,7]
[392582399,1761685859414,-500.0,0.00026979,7]
[392582400,1761685859424,-2604.0,0.00027,2]
[392582401,1761685859433,-7891.84986274,0.00027,2]
[392582470,1761686893453,5114.21946311,0.00032886,120]
[392582471,1761686896094,33207.8371692,0.00032886,120]
[392582472,1761686912505,945694.13137997,0.00032886,120]
[392582473,1761686916582,9075.5408706,0.0001737,2]
[392582474,1761686916605,10000.01,0.0001737,2]
[392582475,1761686916627,10000.01,0.0001737,2]
[392582476,1761686916650,10000.01,0.0001737,2]
[392582477,1761686916672,10000.01,0.0001737,2]
[392582478,1761686916695,10000.01,0.0001737,2]
[392582479,1761686916717,10000.01,0.0001737,2]
[392582480,1761686916741,10000.01,0.0001737,2]
[392582481,1761686916763,10000.01,0.0001737,2]
[392582482,1761686916785,10000.01,0.0001737,2]
[392582485,1761686921892,-7657.09767153,0.0001737,2]
[392582486,1761686921965,-10000.01,0.0001737,2]
[392582487,1761686922110,-10000.01,0.0001737,2]
[392582488,1761686922272,-10000.01,0.0001737,2]
[392582489,1761686923404,-2406.28402965,0.0001737,2]
[392582490,1761686923428,-5187.4419407,0.0001737,2]
[392582503,1761687032187,-165.536187,0.0001863,2]
[392582504,1761687032196,-221.78039688,0.00018676,2]
[392582505,1761687032205,-333.0,0.00018917,2]
[392582506,1761687032213,-500.0,0.00018999,2]
[392582507,1761687032222,-300.0,0.00018999,2]
[392582508,1761687032231,-21840.38027013,0.00019,3]
[392582509,1761687032242,-159.61972987,0.00019,3]
[392582510,1761687032250,-300.0,0.00019379,2]
[392582511,1761687032259,-300.0,0.00019379,2]
[392582512,1761687032269,-300.0,0.00019379,2]
[392582513,1761687032278,-300.0,0.00019379,2]
[392582514,1761687032288,-300.0,0.00019379,2]
[392582515,1761687032296,-300.0,0.00019379,2]
[392582516,1761687032305,-300.0,0.00019379,2]
[392582517,1761687032314,-300.0,0.00019379,2]
[392582519,1761687032324,-300.0,0.00019379,2]
[392582521,1761687032333,-300.0,0.00019379,2]
[392582523,1761687032342,-300.0,0.00019379,2]
[392582525,1761687032351,-300.0,0.00019379,2]
[392582527,1761687032360,-300.0,0.00019379,2]
[392582529,1761687032369,-300.0,0.00019379,2]
[392582531,1761687032378,-300.0,0.00019379,2]
[392582533,1761687032387,-1847.2920927,0.00019685,2]
[392582535,1761687032396,-600.0,0.00019766,2]
[392582537,1761687032405,-171.79187941,0.00020082,2]
[392582539,1761687032416,-378.165772,0.00020182,2]
[392582541,1761687032425,-412.0,0.00020522,2]
[392582542,1761687032434,-261.70086832,0.00020676,2]
[392582543,1761687032443,-300.0,0.00020709,2]
[392582545,1761687032452,-269.11400507,0.0002095,2]
[392582546,1761687032461,-377.02825257,0.00020952,2]
[392582547,1761687032470,-815.2,0.00021738,2]
[392582548,1761687032483,-720.0,0.00021742,20]
[392582549,1761687032492,-403.6515735,0.00021855,2]
[392582550,1761687032501,-500.0,0.00021917,2]
[392582551,1761687032510,-500.0,0.00021917,2]
[392582552,1761687032519,-500.0,0.00021917,2]
[392582553,1761687032528,-500.0,0.00021917,2]
[392582554,1761687032538,-500.0,0.00021917,2]
[392582555,1761687032547,-421.48500316,0.00021917,2]
[392582556,1761687032556,-500.0,0.00021917,2]
[392582557,1761687032565,-500.0,0.00021917,2]
[392582558,1761687032574,-524.64,0.00021917,2]
[392582559,1761687032583,-500.0,0.00021917,2]
[392582560,1761687032594,-500.0,0.00021917,2]
[392582561,1761687032605,-500.0,0.00021917,2]
[392582562,1761687032615,-500.0,0.00021917,2]
[392582563,1761687032625,-500.0,0.00021917,2]
[392582564,1761687032635,-500.0,0.00021917,2]
[392582565,1761687032646,-471.43853795,0.00021917,2]
[392582566,1761687032655,-500.0,0.00021917,2]
[392582567,1761687032665,-642.19,0.00021917,2]
[392582568,1761687032676,-500.0,0.00021917,2]
[392582569,1761687032685,-500.0,0.00021917,2]
[392582570,1761687032695,-500.0,0.00021917,2]
[392582571,1761687032703,-246.66968218,0.00021917,2]
[392582572,1761687032713,-500.0,0.00021917,2]
[392582573,1761687032723,-2.01260327,0.00021917,2]
[392582574,1761687032735,-497.98739673,0.00021917,2]
[392582575,1761687032745,-410.96717144,0.00021917,2]
[392582576,1761687032759,-89.03282856,0.00021917,2]
[392582577,1761687032771,-500.0,0.00021917,2]
[392582578,1761687032780,-500.0,0.00021917,2]
[392582579,1761687032790,-500.0,0.00021917,2]
[392582580,1761687032799,-500.0,0.00021917,2]
[392582581,1761687032809,-500.0,0.00021917,2]
[392582582,1761687032818,-500.0,0.00021917,2]
[392582583,1761687032827,-500.0,0.00021917,2]
[392582584,1761687032837,-500.0,0.00021917,2]
[392582585,1761687032846,-500.0,0.00021917,2]
[392582586,1761687032855,-500.0,0.00021917,2]
[392582587,1761687032865,-500.0,0.00021917,2]
[392582588,1761687032874,-500.0,0.00021917,2]
[392582589,1761687032883,-3409.9,0.00021917,2]
[392582590,1761687032893,-500.0,0.00021917,2]
[392582591,1761687032902,-500.0,0.00021917,2]
[392582592,1761687032911,-659.11,0.00021917,2]
[392582593,1761687032921,-500.0,0.00022191,2]
[392582594,1761687032931,-500.0,0.00022191,2]
[392582595,1761687032940,-500.0,0.00022191,2]
[392582596,1761687032949,-500.0,0.00022191,2]
[392582597,1761687032958,-250.89901815,0.00022191,2]
[392582598,1761687032968,-500.0,0.00022191,2]